bitfinex-derivatives/quotes_SOLF0:USTF0_20250329
["timestamp","ask_amount","ask_price","bid_price","bid_amount"]
[1743235463438,0.05220419,126.32,126.31,7.92]
[1743235464438,0.05220419,126.32,126.3,36.37884232]
[1743235465437,0.05220419,126.32,126.31,7.92]
[1743235466431,333.89470797,126.39,126.35,7.9174]
[1743235466432,4.0397,126.39,126.35,7.9174]
[1743235466633,4.0397,126.39,126.36,28.38]
[1743235467441,11.9551,126.39,126.36,28.38]
[1743235467641,4.09695014,126.39,126.36,28.44004526]
[1743235468337,7.9157,126.38,126.36,28.44004526]
[1743235469545,12.01205014,126.39,126.36,28.44004526]
[1743235469843,0.05725014,126.39,126.36,28.44004526]
[1743235470039,0.05725014,126.39,126.36,36.35654526]
[1743235470240,0.05725014,126.39,126.36,28.44004526]
[1743235470637,0.05725014,126.39,126.37,14.1637828]
[1743235471145,0.05725014,126.39,126.37,22.0797828]
[1743235471645,0.05725014,126.39,126.37,14.1637828]
[1743235472346,0.05725014,126.39,126.38,7.9156]
[1743235473546,7.9127,126.43,126.37,18.5059828]
[1743235473748,4.2217,126.46,126.39,14.1637828]
[1743235474047,4.2217,126.46,126.4,28.36]
[1743235474646,0.05821877,126.44,126.42,0.05791502]
[1743235474842,7.9125,126.43,126.42,0.05791502]
[1743235477046,7.97011877,126.44,126.42,0.05791502]
[1743235477449,0.05821877,126.44,126.42,0.05791502]
[1743235477940,7.97001877,126.44,126.43,28.36]
[1743235482349,0.05821877,126.44,126.43,28.36]
[1743235483255,7.97001877,126.44,126.43,28.36]
[1743235490150,7.9125,126.43,126.42,0.05791502]
[1743235491067,22.0762828,126.43,126.42,1.502e-05]
[1743235491274,7.9156,126.38,126.35,14.1637828]
[1743235491470,14.1637828,126.43,126.34,7.9177]
[1743235491663,7.9156,126.38,126.37,28.34]
[1743235492771,7.9162,126.37,126.36,261.29403378]
[1743235492972,7.9162,126.37,126.36,289.63403378]
[1743235497075,7.9159,126.38,126.36,289.63403378]
[1743235497267,0.05785361,126.39,126.36,289.63403378]
[1743235497979,7.9162,126.37,126.36,289.63403378]
[1743235498478,7.9162,126.37,126.36,261.29403378]
[1743235498672,7.9162,126.37,126.36,289.65403378]
[1743235499674,7.9162,126.37,126.36,0.05403378]
[1743235499973,373.63942434,126.5,126.36,50.4437828]
[1743235500178,22.3059828,126.49,126.41,14.1637828]
[1743235500378,22.3059828,126.49,126.42,28.64]
[1743235500778,7.9103,126.47,126.42,28.64]
[1743235501071,0.05928582,126.46,126.43,0.0531014]
[1743235502070,0.05928582,126.46,126.44,28.64]
[1743235503070,0.05928582,126.46,126.45,14.1637828]
[1743235503377,0.00525204,126.46,126.45,22.0749828]
[1743235503977,7.9084,126.5,126.45,22.0749828]
[1743235504580,4.2696,126.52,126.46,7.9105]
[1743235504780,4.2696,126.52,126.47,28.62]
[1743235505180,0.05913406,126.51,126.48,0.05646807]
[1743235505480,7.96683406,126.51,126.48,0.05646807]
[1743235506470,0.05913406,126.51,126.48,0.05646807]
[1743235506873,7.96663406,126.51,126.48,0.05646807]
[1743235507374,0.05913406,126.51,126.48,7.96576807]
[1743235507575,0.05913406,126.51,126.48,0.05646807]
[1743235508081,0.05913406,126.51,126.49,7.9083]
[1743235508282,0.05913406,126.51,126.5,28.58]
[1743235509978,0.05913406,126.51,126.5,36.4881]
[1743235510384,7.9048,126.56,126.52,7.9068]
[1743235510585,334.21730797,126.58,126.53,28.58]
[1743235510885,7.9049,126.56,126.53,28.58]
[1743235511081,334.21730797,126.58,126.53,28.58]
[1743235511381,7.9053,126.55,126.53,28.58]
[1743235511586,7.9053,126.55,126.54,0.05434166]
[1743235517888,7.9053,126.55,126.51,28.56]
[1743235517889,22.0637828,126.55,126.51,28.56]
[1743235518082,14.1637828,126.55,126.51,28.56]
[1743235518288,4.2461,126.54,126.51,28.56]
[1743235518787,7.9106,126.46,126.45,261.0]
[1743235519085,7.9106,126.46,126.45,289.56]
[1743235520292,0.05150962,126.47,126.45,289.56]
[1743235520590,0.05150962,126.47,126.46,14.1637828]
[1743235520979,7.9084,126.5,126.46,22.0743828]
[1743235521594,7.9084,126.5,126.48,14.1637828]
[1743235521793,7.9084,126.5,126.48,42.7037828]
[1743235522194,7.96066889,126.5,126.48,42.76223586]
[1743235522891,7.9087,126.49,126.48,42.76223586]
[1743235523489,0.05226889,126.5,126.48,42.76223586]
[1743235523695,7.96066889,126.5,126.48,42.76223586]
[1743235524892,7.9087,126.49,126.48,42.76223586]
[1743235525094,0.05226889,126.5,126.48,42.76223586]
[1743235526388,7.96076889,126.5,126.48,42.76223586]
[1743235527093,0.05226889,126.5,126.48,42.76223586]
[1743235528095,7.96066889,126.5,126.48,42.76223586]
[1743235529390,7.9087,126.49,126.48,42.76223586]
[1743235529896,0.05226889,126.5,126.48,42.76223586]
[1743235530299,7.96076889,126.5,126.48,42.76223586]
[1743235530997,7.9087,126.49,126.48,0.05845306]
[1743235531392,0.05226889,126.5,126.45,261.0]
[1743235532498,0.05226889,126.5,126.46,0.04993022]
[1743235532896,7.9105,126.47,126.46,0.04993022]
[1743235533701,0.05226889,126.5,126.46,14.21371302]
[1743235533999,0.05226889,126.5,126.47,28.48]
[1743235534498,7.9093,126.48,126.47,28.48]
[1743235535393,7.91,126.47,126.46,0.04993022]
[1743235536100,7.9096,126.48,126.46,0.04993022]
[1743235536905,7.91,126.47,126.46,0.04993022]
[1743235540801,7.9096,126.48,126.46,0.04993022]
[1743235541504,7.91,126.47,126.46,0.04993022]
[1743235543099,7.9096,126.48,126.46,0.04993022]
[1743235543300,0.05226889,126.5,126.46,0.04993022]
[1743235544399,0.05226889,126.5,126.46,14.21371302]
[1743235544891,7.96066889,126.5,126.47,7.9096]
[1743235545096,7.96066889,126.5,126.48,28.44]
[1743235545404,0.05226889,126.5,126.48,28.44]
[1743235546095,7.9087,126.49,126.48,28.44]
[1743235549307,7.96066889,126.5,126.48,28.44]
[1743235549506,0.05226889,126.5,126.48,28.44]
[1743235550208,7.9087,126.49,126.48,28.44]
[1743235554003,7.96066889,126.5,126.48,28.44]
[1743235554906,7.96066889,126.5,126.48,37.51070749]
[1743235555106,0.05226889,126.5,126.49,9.07070749]
[1743235556510,7.96036889,126.5,126.49,9.07070749]
[1743235558213,7.9087,126.49,126.48,37.51070749]
[1743235558511,7.9087,126.49,126.48,28.44]
[1743235566918,7.91,126.47,126.46,0.04993022]
[1743235567110,16.98070749,126.47,126.46,0.04993022]
[1743235568318,0.05226889,126.5,126.46,37.46063771]
[1743235568515,0.05226889,126.5,126.47,9.07070749]
[1743235569018,7.9093,126.49,126.47,9.07070749]
[1743235569212,0.05226889,126.5,126.47,9.07070749]
[1743235569820,7.9093,126.48,126.47,9.07070749]
[1743235573114,7.91,126.47,126.46,28.38993022]
[1743235573307,7.91,126.47,126.46,0.04993022]
[1743235573919,16.98070749,126.47,126.46,0.04993022]
[1743235574221,7.91,126.47,126.46,0.04993022]
[1743235577421,7.9118,126.44,126.43,289.22]
[1743235578820,7.9118,126.44,126.43,260.88]
[1743235581629,0.05847728,126.45,126.43,269.95070749]
[1743235581816,0.05847728,126.45,126.44,9.07070749]
[1743235582715,0.05847728,126.45,126.43,269.95070749]
[1743235582716,7.9118,126.44,126.43,269.95070749]
[1743235584115,7.96997728,126.45,126.43,269.95070749]
[1743235584918,0.05847728,126.45,126.44,9.07070749]
[1743235585422,0.05847728,126.45,126.44,16.98250749]
[1743235586122,13.20700749,126.54,126.49,9.07070749]
[1743235586313,17.51270749,126.54,126.49,9.07070749]
[1743235587123,0.05055656,126.53,126.5,0.05506374]
[1743235587515,9.12126405,126.53,126.5,0.05506374]
[1743235587714,9.07070749,126.52,126.5,0.05506374]
[1743235587920,9.07070749,126.51,126.48,28.34]
[1743235588119,9.07070749,126.49,126.44,28.34]
[1743235588324,7.9112,126.45,126.44,28.34]
[1743235592227,7.9627136,126.46,126.44,28.34]
[1743235592731,0.0518136,126.46,126.44,45.32250749]
[1743235594624,7.9624136,126.46,126.44,37.41070749]
[1743235596431,0.0518136,126.46,126.44,45.32250749]
[1743235596629,0.0518136,126.46,126.44,37.41070749]
[1743235597630,0.0518136,126.46,126.44,45.32220749]
[1743235598737,7.9626136,126.46,126.44,37.41070749]
[1743235599336,7.9626136,126.46,126.44,28.34]
[1743235599533,7.9112,126.45,126.44,28.34]
[1743235599731,0.0518136,126.46,126.43,260.93075243]
[1743235599732,9.12252109,126.46,126.43,260.93075243]
[1743235600538,9.07070749,126.44,126.43,0.05075243]
[1743235601643,16.98250749,126.44,126.43,0.05075243]
[1743235601834,7.9118,126.44,126.43,0.05075243]
[1743235604739,16.98250749,126.44,126.43,0.05075243]
[1743235607352,16.98250749,126.44,126.43,5.243e-05]
[1743235610755,7.9118,126.44,126.43,5.243e-05]
[1743235612658,16.98250749,126.44,126.43,5.243e-05]
[1743235613156,7.9118,126.44,126.43,5.243e-05]
[1743235613657,0.0518136,126.46,126.43,28.34005243]
[1743235615156,7.9115,126.45,126.43,37.41075992]
[1743235617349,0.0518136,126.46,126.43,37.41075992]
[1743235617548,0.0518136,126.46,126.43,28.34005243]
[1743235619358,7.9118,126.45,126.43,28.34005243]
[1743235619758,0.0518136,126.46,126.43,28.34005243]
[1743235620057,7.9118,126.44,126.43,28.34005243]
[1743235620253,0.0518136,126.46,126.43,37.41075992]
[1743235620453,9.07070749,126.53,126.45,9.07070749]
[1743235620758,43.78441637,126.55,126.52,9.07070749]
[1743235621656,43.84487122,126.55,126.52,0.06000183]
[1743235621857,7.9062,126.53,126.52,0.06000183]
[1743235622059,43.84487122,126.55,126.52,0.06000183]
[1743235622260,7.906,126.54,126.52,37.47070932]
[1743235622957,7.906,126.54,126.52,28.40000183]
[1743235624359,7.9062,126.53,126.52,28.40000183]
[1743235625262,7.9062,126.53,126.52,0.06000183]
[1743235627162,0.06045485,126.55,126.52,14.22338904]
[1743235627360,0.06045485,126.55,126.53,32.4107]
[1743235627760,14.16338721,126.62,126.53,32.4107]
[1743235627964,14.16338721,126.62,126.54,14.16338721]
[1743235628958,7.9031,126.58,126.57,0.04984802]
[1743235629164,7.9031,126.58,126.57,28.36984802]
[1743235631561,0.05962374,126.59,126.57,28.36984802]
[1743235631762,329.85500797,126.63,126.57,28.36984802]
[1743235631966,329.85500797,126.63,126.58,4.1995]
[1743235632164,7.9014,126.61,126.58,12.1023]
[1743235632869,7.95649172,126.61,126.58,12.1023]
[1743235633967,0.05509172,126.61,126.58,18.36288721]
[1743235634164,344.01839518,126.68,126.58,18.36288721]
[1743235634471,7.8991,126.65,126.61,7.9007]
[1743235634769,7.8991,126.65,126.62,28.32]
[1743235635274,7.8991,126.65,126.62,36.2206]
[1743235635469,0.05486811,126.65,126.62,28.37853172]
[1743235635668,14.16338721,126.7,126.64,7.899]
[1743235635973,14.16338721,126.7,126.65,28.32]
[1743235636770,0.0219296,126.69,126.66,0.05912185]
[1743235637570,7.8975,126.67,126.66,0.05912185]
[1743235638262,7.8971,126.68,126.66,0.05912185]
[1743235638466,0.0219296,126.69,126.66,0.05912185]
[1743235639270,7.8975,126.67,126.66,0.05912185]
[1743235640376,7.9006,126.62,126.61,260.74]
[1743235640577,7.9006,126.62,126.61,289.04]
[1743235640875,7.9018,126.6,126.59,28.3]
[1743235641963,7.95324069,126.61,126.59,28.3]
[1743235642977,0.05184069,126.61,126.59,28.3]
[1743235643469,0.05184069,126.61,126.59,36.2021]
[1743235645176,0.05184069,126.61,126.6,7.9018]
[1743235645677,0.05184069,126.61,126.59,36.2022]
[1743235646580,0.05184069,126.61,126.6,7.9018]
[1743235647275,0.05184069,126.61,126.58,18.41757423]
[1743235647475,0.05184069,126.61,126.6,28.3]
[1743235649683,7.95304069,126.61,126.6,28.3]
[1743235650086,0.05184069,126.61,126.6,28.3]
[1743235651881,0.05184069,126.61,126.58,0.05468702]
[1743235652181,14.2152279,126.61,126.58,0.05468702]
[1743235652685,7.9025,126.59,126.58,0.05468702]
[1743235653686,7.9021,126.6,126.58,0.05468702]
[1743235654889,7.95334069,126.61,126.59,28.3]
[1743235655383,7.9018,126.6,126.59,28.3]
[1743235657990,0.05184069,126.61,126.59,28.3]
[1743235657991,7.95334069,126.61,126.59,28.3]
[1743235658885,0.05184069,126.61,126.59,28.3]
[1743235659892,7.95334069,126.61,126.59,28.3]
[1743235660992,0.05184069,126.61,126.59,36.2025]
[1743235661795,0.05184069,126.61,126.6,7.9018]
[1743235662693,18.51338721,126.67,126.62,7.9005]
[1743235662990,18.51338721,126.67,126.63,28.3]
[1743235663892,0.02921076,126.66,126.64,0.05936319]
[1743235664795,7.8993,126.65,126.64,0.05936319]
[1743235671002,16.95117621,126.65,126.64,0.05936319]
[1743235676103,7.8993,126.65,126.64,0.05936319]
[1743235680812,16.95117621,126.65,126.64,0.05936319]
[1743235688620,9.05187621,126.6,126.58,260.6]
[1743235688924,9.05187621,126.59,126.55,42.1161915]
[1743235689121,7.9043,126.56,126.55,21.80113314]
[1743235689424,16.95617621,126.56,126.55,21.80113314]
[1743235689815,7.905,126.55,126.54,121.28269833]
[1743235690018,16.95687621,126.55,126.54,121.28269833]
[1743235690223,16.95687621,126.55,126.54,0.06057085]
[1743235690520,7.9068,126.52,126.51,33.06058022]
[1743235690723,16.95867621,126.52,126.51,33.06058022]
[1743235690920,7.9068,126.52,126.51,33.06058022]
[1743235691724,0.06008167,126.53,126.51,33.06058022]
[1743235691923,0.06008167,126.53,126.51,61.36058022]
[1743235692318,7.9068,126.52,126.51,61.36058022]
[1743235692721,329.85500797,126.66,126.51,184.26058022]
[1743235692924,14.17683432,126.65,126.56,7.9039]
[1743235693125,14.17683432,126.65,126.57,28.3]
[1743235693325,14.17683432,126.65,126.58,28.3]
[1743235693527,10.94610409,126.62,126.58,28.3]
[1743235693822,18.84670409,126.62,126.59,28.3]
[1743235694015,0.05519059,126.61,126.59,28.35917934]
[1743235695029,0.05519059,126.61,126.59,0.05917934]
[1743235695328,0.05519059,126.61,126.6,28.3]
[1743235698722,0.05519059,126.61,126.6,7.9018]
[1743235698927,0.05519059,126.61,126.6,36.2018]
[1743235699533,0.05519059,126.61,126.6,50.37863432]
[1743235699729,0.05519059,126.61,126.6,42.47683432]
[1743235701034,8.4651,126.7,126.6,42.47683432]
[1743235701329,8.4651,126.7,126.62,14.17683432]
[1743235701532,7.8969,126.68,126.63,28.3]
[1743235702032,0.03387254,126.67,126.64,0.0550468]
[1743235703230,0.03387254,126.67,126.64,28.3550468]
[1743235703629,7.8987,126.65,126.64,28.3550468]
[1743235703824,0.03387254,126.67,126.64,28.3550468]
[1743235704131,7.8984,126.66,126.64,28.3550468]
[1743235704332,0.03387254,126.67,126.64,28.3550468]
[1743235705434,7.8987,126.65,126.64,0.0550468]
[1743235705629,14.21070686,126.67,126.62,28.3]
[1743235705837,14.17683432,126.67,126.62,28.3]
[1743235706036,7.9,126.63,126.62,28.3]
[1743235706333,14.17683432,126.67,126.62,28.3]
[1743235706730,329.85500797,126.68,126.62,28.3]
[1743235706930,0.05136401,126.66,126.63,0.05762871]
[1743235707336,7.8988,126.65,126.63,0.05762871]
[1743235707533,0.05136401,126.66,126.63,0.05762871]
[1743235707832,7.8993,126.64,126.63,0.05762871]
[1743235713442,0.05136401,126.66,126.63,14.23446303]
[1743235714640,7.94966401,126.66,126.63,14.23446303]
[1743235715441,7.8988,126.65,126.63,14.23446303]
[1743235723553,7.94986401,126.66,126.63,14.23446303]
[1743235723954,7.94986401,126.66,126.63,22.13436303]
[1743235724256,7.8987,126.65,126.63,14.23446303]
[1743235725657,0.05136401,126.66,126.63,0.05762871]
[1743235725852,0.05136401,126.66,126.64,28.28]
[1743235726153,7.8993,126.64,126.63,0.05762871]
[1743235727254,7.8993,126.64,126.63,28.33762871]
[1743235729756,7.8993,126.64,126.63,0.05762871]
[1743235730062,7.9,126.64,126.54,14.17683432]
[1743235730262,14.17683432,126.62,126.54,14.17683432]
[1743235730457,14.17683432,126.62,126.55,28.28]
[1743235730761,4.1267,126.63,126.56,14.17683432]
[1743235731054,0.05176264,126.61,126.58,0.05829211]
[1743235731261,7.9018,126.6,126.59,28.28]
[1743235731862,329.85500797,126.71,126.59,28.28]
[1743235732056,348.15854229,126.71,126.62,14.17683432]
[1743235732253,391.94295866,126.71,126.63,28.38]
[1743235732457,7.8978,126.67,126.63,28.38]
[1743235733059,0.05722558,126.66,126.64,0.06015449]
[1743235735563,7.8987,126.65,126.64,0.06015449]
[1743235740663,14.17683432,126.63,126.58,28.34]
[1743235740862,14.17683432,126.61,126.56,28.34]
[1743235741063,14.17683432,126.61,126.56,28.36]
[1743235741665,0.05583501,126.6,126.57,0.06036027]
[1743235742059,7.9028,126.59,126.57,0.06036027]
[1743235742471,0.05583501,126.6,126.57,0.06036027]
[1743235743770,7.9031,126.58,126.57,0.06036027]
[1743235744971,7.9029,126.59,126.57,0.06036027]
[1743235745470,7.9031,126.58,126.57,0.06036027]
[1743235747974,0.05583501,126.6,126.57,28.34]
[1743235749065,0.05583501,126.6,126.57,28.39326889]
[1743235749480,0.05583501,126.6,126.57,36.29696889]
[1743235751482,7.95783501,126.6,126.57,36.29696889]
[1743235752383,0.05583501,126.6,126.58,7.9031]
[1743235753481,0.05583501,126.6,126.58,14.17683432]
[1743235753685,4.1559,126.66,126.6,14.17683432]
[1743235753876,4.1559,126.66,126.61,28.38]
[1743235754081,7.8991,126.65,126.62,7.9005]
[1743235754282,334.15600797,126.69,126.62,14.17683432]
[1743235754485,7.8976,126.67,126.64,7.8989]
[1743235754782,0.05542394,126.67,126.65,28.4]
[1743235756781,7.95322394,126.67,126.65,28.4]
[1743235757683,7.8981,126.66,126.65,28.4]
[1743235757983,0.05542394,126.67,126.64,0.0567434]
[1743235758388,14.23225826,126.67,126.64,0.0567434]
[1743235758589,7.8987,126.65,126.64,0.0567434]
[1743235762888,329.85500797,126.64,126.54,293.64058022]
[1743235763091,14.17683432,126.61,126.55,22.01325978]
[1743235763496,7.9043,126.57,126.54,314.19272062]
[1743235763992,7.9043,126.57,126.54,293.64058022]
[1743235764292,7.95976846,126.57,126.54,293.69107122]
[1743235764498,7.95976846,126.57,126.54,260.630491]
[1743235765194,7.9045,126.56,126.54,260.630491]
[1743235766097,7.95946846,126.57,126.54,260.630491]
[1743235766594,0.05546846,126.57,126.54,260.630491]
[1743235767694,14.23230278,126.57,126.54,0.050491]
[1743235767892,14.23230278,126.57,126.54,9.1e-05]
[1743235768094,7.905,126.55,126.54,9.1e-05]
[1743235768291,22.08183432,126.55,126.54,9.1e-05]
[1743235768491,14.17683432,126.53,126.48,260.64]
[1743235768695,42.67683432,126.53,126.47,21.96981804]
[1743235769087,7.91,126.47,126.46,52.706644]
[1743235769589,7.96571621,126.48,126.46,52.706644]
[1743235770094,0.05520156,126.48,126.46,0.05448868]
[1743235771194,329.85500797,126.55,126.47,14.17683432]
[1743235771391,8.3589,126.56,126.49,14.17683432]
[1743235771592,14.17683432,126.59,126.49,14.17683432]
[1743235771793,7.9048,126.56,126.49,18.30823432]
[1743235772296,7.9048,126.56,126.5,7.9079]
[1743235772492,14.17683432,126.59,126.49,18.30823432]
[1743235772493,0.05831928,126.54,126.51,28.57124719]
[1743235772693,33.32303841,126.63,126.53,14.17683432]
[1743235772889,33.32303841,126.63,126.55,7.9046]
[1743235772890,19.14620409,126.63,126.55,7.9046]
[1743235773090,7.9015,126.61,126.54,28.52]
[1743235773394,8.2001,126.63,126.54,36.4254]
[1743235773590,8.2001,126.63,126.54,28.52]
[1743235773786,0.05347099,126.6,126.57,0.0537127]
[1743235774294,7.95557099,126.6,126.57,0.0537127]
[1743235774596,7.95557099,126.6,126.57,28.6137127]
[1743235775396,0.05347099,126.6,126.57,28.6137127]
[1743235775994,0.05347099,126.6,126.59,7.9025]
[1743235777398,7.899,126.65,126.61,7.9012]
[1743235777696,7.8996,126.64,126.61,28.56]
[1743235778594,7.95550067,126.64,126.61,28.61186535]
[1743235779392,0.05590067,126.64,126.61,28.61186535]
[1743235779590,22.70105602,126.64,126.61,0.05186535]
[1743235779785,3.9717,126.63,126.57,28.56]
[1743235779991,7.9028,126.59,126.57,28.56]
[1743235780189,7.9028,126.59,126.55,36.4648]
[1743235780987,0.0576533,126.58,126.56,7.96487498]
[1743235781187,3.9717,126.63,126.56,0.06057498]
[1743235781495,0.05318794,126.58,126.56,0.06057498]
[1743235781793,0.05528133,126.58,126.56,0.06057498]
[1743235781997,22.64515535,126.68,126.56,0.06057498]
[1743235782195,32.7338,126.67,126.57,22.64515535]
[1743235782388,7.8991,126.65,126.58,28.56]
[1743235782586,32.7338,126.67,126.58,32.7614]
[1743235782790,4.1738,126.67,126.58,32.7614]
[1743235783194,7.95104821,126.64,126.61,0.05073892]
[1743235783397,7.95104821,126.64,126.61,28.61073892]
[1743235785006,7.9,126.63,126.61,28.61073892]
[1743235788914,7.95084821,126.64,126.61,28.61073892]
[1743235789115,0.05134821,126.64,126.61,28.61073892]
[1743235790710,7.9001,126.63,126.61,28.61073892]
[1743235790911,22.69650356,126.64,126.61,0.05073892]
[1743235791218,22.69650356,126.64,126.57,260.66]
[1743235791419,7.9019,126.6,126.57,268.5634]
[1743235791616,7.9019,126.6,126.57,260.66]
[1743235792221,22.64515535,126.64,126.56,28.48]
[1743235792419,0.05462775,126.6,126.57,0.05329822]
[1743235792919,7.9029,126.59,126.57,0.05329822]
[1743235794819,0.05462775,126.6,126.57,0.05329822]
[1743235795212,0.05462775,126.6,126.57,22.69845357]
[1743235795411,329.85500797,126.66,126.57,26.78385357]
[1743235795621,329.85500797,126.66,126.57,26.73055535]
[1743235796123,7.8995,126.64,126.57,26.73055535]
[1743235796415,329.85500797,126.66,126.57,26.73055535]
[1743235796620,0.05662394,126.62,126.59,0.04983294]
[1743235796822,0.05662394,126.62,126.6,28.48]
[1743235797723,7.95752394,126.62,126.6,28.48]
[1743235798424,0.05662394,126.62,126.59,0.04983294]
[1743235799825,7.9018,126.61,126.59,0.04983294]
[1743235800422,0.05662394,126.62,126.59,0.04983294]
[1743235801519,7.9018,126.6,126.59,0.04983294]
[1743235802121,7.9015,126.61,126.59,0.04983294]
[1743235804324,7.95752394,126.62,126.59,0.04983294]
[1743235804521,0.05662394,126.62,126.59,0.04983294]
[1743235805622,7.9016,126.61,126.59,0.04983294]
[1743235806929,7.95752394,126.62,126.59,0.04983294]
[1743235807930,7.95752394,126.62,126.59,7.95213294]
[1743235810127,0.05662394,126.62,126.59,7.95213294]
[1743235811530,7.95722394,126.62,126.59,7.95213294]
[1743235813132,14.14817982,126.69,126.6,14.14817982]
[1743235813330,43.78441637,126.72,126.64,14.14817982]
[1743235813640,43.78441637,126.72,126.66,14.14817982]
[1743235814335,0.03577898,126.7,126.68,7.95375139]
[1743235814532,0.03577898,126.7,126.69,28.46]
[1743235815333,0.03577898,126.7,126.69,36.3562]
[1743235816031,0.03577898,126.7,126.69,28.46]
[1743235817533,0.03577898,126.7,126.69,36.3562]
[1743235821941,0.03577898,126.7,126.69,28.46]
[1743235823938,8.3959,126.76,126.69,28.46]
[1743235824146,8.3959,126.76,126.71,14.14817982]
[1743235824343,8.3959,126.76,126.72,28.36]
[1743235824544,7.893,126.75,126.72,28.36]
[1743235825146,7.893,126.75,126.72,28.41769836]
[1743235825543,329.85500797,126.79,126.72,28.41769836]
[1743235825845,20.66207982,126.78,126.72,28.41769836]
[1743235826239,7.8937,126.73,126.72,28.41769836]
[1743235827047,7.8937,126.73,126.72,0.05769836]
[1743235833956,7.8969,126.68,126.64,14.14817982]
[1743235834151,7.8969,126.68,126.59,33.06058022]
[1743235834152,7.8969,126.68,126.65,288.94]
[1743235834846,14.14817982,126.71,126.65,260.62]
[1743235835046,14.20587818,126.69,126.67,0.05405436]
[1743235835452,7.8969,126.68,126.67,0.05405436]
[1743235836252,7.95439836,126.69,126.67,0.05405436]
[1743235836652,0.05769836,126.69,126.67,0.05405436]
[1743235836854,7.95419836,126.69,126.67,0.05405436]
[1743235837556,7.8969,126.68,126.67,0.05405436]
[1743235844558,7.95419836,126.69,126.67,0.05405436]
[1743235844955,0.05769836,126.69,126.67,28.35405436]
[1743235845354,0.05769836,126.69,126.67,36.25115436]
[1743235845755,0.05769836,126.69,126.67,28.35405436]
[1743235846157,0.05769836,126.69,126.67,0.05405436]
[1743235846959,7.8969,126.68,126.67,0.05405436]
[1743235850763,0.05769836,126.69,126.67,0.05405436]
[1743235851362,0.05769836,126.69,126.68,42.48817982]
[1743235852264,337.74900797,126.73,126.69,7.8959]
[1743235852459,7.894,126.73,126.69,7.8959]
[1743235852658,28.34,126.77,126.68,42.48817982]
[1743235852863,333.27210797,126.78,126.73,7.8937]
[1743235853560,7.8915,126.77,126.74,0.05720242]
[1743235853862,7.8915,126.77,126.74,7.95030242]
[1743235854059,333.27210797,126.78,126.74,7.95030242]
[1743235854060,341.16300797,126.78,126.74,7.95030242]
[1743235854968,341.16300797,126.78,126.74,0.05720242]
[1743235855660,341.16300797,126.78,126.75,28.34]
[1743235856665,333.27210797,126.78,126.75,28.34]
[1743235857066,11.3081,126.78,126.75,28.34]
[1743235857463,3.4171,126.78,126.75,28.34]
[1743235858162,7.8916,126.77,126.75,28.34]
[1743235858867,11.308,126.78,126.75,28.34]
[1743235860164,7.8914,126.77,126.75,28.34]
[1743235860568,7.8925,126.75,126.74,0.05720242]
[1743235861663,7.8919,126.76,126.74,0.05720242]
[1743235861973,3.4171,126.78,126.74,0.05720242]
[1743235862363,7.8924,126.76,126.74,0.05720242]
[1743235863265,7.8925,126.75,126.74,0.05720242]
[1743235864078,7.8921,126.76,126.74,0.05720242]
[1743235864370,3.4171,126.78,126.74,0.05720242]
[1743235864768,7.8919,126.77,126.74,0.05720242]
[1743235864966,12.45062069,126.78,126.74,0.05720242]
[1743235865268,7.8925,126.75,126.74,0.05720242]
[1743235867283,7.8922,126.76,126.74,0.05720242]
[1743235868287,7.8925,126.75,126.74,0.05720242]
[1743235868489,3.4171,126.78,126.74,0.05720242]
[1743235869381,14.12088174,126.84,126.77,7.8907]
[1743235869587,6.4934,126.83,126.77,28.32]
[1743235869779,343.97588971,126.82,126.77,28.32]
[1743235869981,343.97588971,126.82,126.78,0.05259146]
[1743235870180,7.89,126.79,126.78,0.05259146]
[1743235872783,329.85500797,126.82,126.78,0.05259146]
[1743235873178,7.8892,126.81,126.78,0.05259146]
[1743235874090,329.85500797,126.82,126.78,0.05259146]
[1743235874481,343.97588971,126.82,126.78,0.05259146]
[1743235874685,329.85500797,126.82,126.78,0.05259146]
[1743235875088,337.74350797,126.82,126.78,7.94319146]
[1743235876194,329.85500797,126.82,126.79,7.89]
[1743235876388,14.12088174,126.86,126.79,28.38]
[1743235876690,14.12088174,126.86,126.81,0.05315302]
[1743235877290,7.8872,126.84,126.81,0.05315302]
[1743235878289,7.8877,126.83,126.81,0.05315302]
[1743235878884,14.12088174,126.86,126.81,0.05315302]